fUST/lending_fUST_20250704
["ID","MTS","AMOUNT","RATE_DAILY","PERIOD"]
[369601865,1751639449795,-460.0,0.00017808,2]
[369601866,1751639449805,-1497.27,0.00017808,2]
[369601867,1751639449815,-460.0,0.00017808,2]
[369601868,1751639449824,-691.33,0.00017808,2]
[369601869,1751639449833,-2310.45,0.00017808,2]
[369601870,1751639449843,-916.41,0.00017808,2]
[369601871,1751639449852,-460.0,0.00017808,2]
[369601872,1751639449862,-460.0,0.00017808,2]
[369601873,1751639449871,-460.0,0.00017808,2]
[369601874,1751639449881,-199.689485,0.00017808,2]
[369601875,1751639449890,-199.689485,0.00017808,2]
[369601876,1751639449900,-1038.33,0.00017808,2]
[369601877,1751639449911,-460.0,0.00017808,2]
[369601878,1751639449920,-460.0,0.00017808,2]
[369601879,1751639449930,-460.0,0.00017808,2]
[369601880,1751639449940,-460.0,0.00017808,2]
[369601881,1751639449949,-460.0,0.00017808,2]
[369601882,1751639449959,-592.38,0.00017808,2]
[369601883,1751639449969,-250.0,0.00017857,2]
[369601884,1751639449979,-215.0738,0.00017895,2]
[369601885,1751639449989,-151.0,0.000179,2]
[369601886,1751639449998,-151.0,0.000179,2]
[369601887,1751639450008,-250.902005,0.000179,2]
[369601888,1751639450017,-151.0,0.000179,2]
[369601889,1751639450027,-344.88243,0.000179,2]
[369601890,1751639450037,-344.88243,0.000179,2]
[369601891,1751639450046,-237.0,0.00017928,2]
[369601892,1751639450056,-250.0,0.00017938,2]
[369601893,1751639450066,-153.0,0.00017973,2]
[369601894,1751639450075,-153.0,0.00017973,2]
[369601895,1751639450085,-153.0,0.00017973,2]
[369601896,1751639450095,-428.400036,0.00017988,2]
[369601897,1751639450104,-151.0,0.00017999,2]
[369601898,1751639450114,-151.0,0.00017999,2]
[369601899,1751639450124,-151.0,0.00017999,2]
[369601900,1751639450134,-151.0,0.00017999,2]
[369601901,1751639450143,-460.0,0.00017999,2]
[369601902,1751639450153,-460.0,0.00017999,2]
[369601903,1751639450162,-460.0,0.00017999,2]
[369601904,1751639450171,-460.0,0.00017999,2]
[369601905,1751639450181,-901.08,0.00017999,2]
[369601906,1751639450191,-2685.12,0.00017999,2]
[369601907,1751639450201,-460.0,0.00017999,2]
[369601908,1751639450210,-596.03,0.00017999,2]
[369601909,1751639450219,-697.48,0.00017999,2]
[369601910,1751639450229,-786.49,0.00017999,2]
[369601911,1751639450239,-494.25,0.00017999,2]
[369601912,1751639450249,-170.89903,0.00018,2]
[369601913,1751639450258,-237.0,0.00018001,2]
[369601914,1751639450267,-7830.77030469,0.00018003,2]
[369601915,1751639450276,-266.630416,0.00018004,2]
[369601916,1751639450285,-266.630416,0.00018004,2]
[369601917,1751639450295,-169.6,0.00018005,2]
[369601918,1751639450305,-318.0,0.00018014,2]
[369601919,1751639450315,-204.75563522,0.00018014,2]
[369601920,1751639450325,-318.0,0.00018014,2]
[369601921,1751639450334,-318.0,0.00018014,2]
[369601922,1751639450344,-319.92909851,0.00018014,2]
[369601923,1751639450354,-250.0,0.00018019,2]
[369601924,1751639450363,-1000.0,0.00018027,2]
[369601925,1751639450372,-1000.0,0.00018027,2]
[369601926,1751639450382,-291.53627196,0.00018027,2]
[369601927,1751639450392,-617.3738906,0.00018073,2]
[369601928,1751639450402,-151.0,0.00018082,2]
[369601929,1751639450411,-552.92,0.00018082,2]
[369601930,1751639450420,-460.0,0.00018082,2]
[369601931,1751639450430,-460.0,0.00018082,2]
[369601932,1751639450439,-460.0,0.00018082,2]
[369601933,1751639450449,-460.0,0.00018082,2]
[369601934,1751639450459,-151.0,0.00018082,2]
[369601935,1751639450471,-460.0,0.00018082,2]
[369601936,1751639450480,-845.88,0.00018082,2]
[369601937,1751639450490,-460.0,0.00018082,2]
[369601938,1751639450500,-460.0,0.00018082,2]
[369601939,1751639450511,-601.92,0.00018082,2]
[369601940,1751639450520,-460.0,0.00018082,2]
[369601941,1751639450530,-630.66,0.00018082,2]
[369601942,1751639450540,-151.203889,0.00018082,2]
[369601943,1751639450551,-1045.33,0.00018082,2]
[369601944,1751639450560,-460.0,0.00018082,2]
[369601945,1751639450570,-1477.98,0.00018082,2]
[369601946,1751639450580,-1294.52,0.00018082,2]
[369601947,1751639450589,-940.7,0.00018082,2]
[369601948,1751639450599,-460.0,0.00018082,2]
[369601949,1751639450608,-460.0,0.00018082,2]
[369601950,1751639450617,-460.0,0.00018082,2]
[369601951,1751639450626,-460.0,0.00018082,2]
[369601952,1751639450636,-1381.49,0.00018082,2]
[369601953,1751639450645,-234.11960778,0.00018082,2]
[369601954,1751639450654,-460.0,0.00018082,2]
[369601955,1751639450663,-1536.37,0.00018082,2]
[369601956,1751639450673,-460.0,0.00018082,2]
[369601957,1751639450683,-460.0,0.00018082,2]
[369601958,1751639450692,-460.0,0.00018082,2]
[369601959,1751639450702,-887.1,0.00018082,2]
[369601960,1751639450711,-460.0,0.00018082,2]
[369601961,1751639450720,-1906.15,0.00018082,2]
[369601962,1751639450730,-2258.56,0.00018082,2]
[369601963,1751639450739,-460.0,0.00018082,2]
[369601964,1751639450749,-1497.27,0.00018082,2]
[369601965,1751639450758,-460.0,0.00018082,2]
[369601966,1751639450799,-691.33,0.00018082,2]
[369601967,1751639450809,-2310.45,0.00018082,2]
[369601968,1751639450819,-916.41,0.00018082,2]
[369601969,1751639450828,-460.0,0.00018082,2]
[369601970,1751639450838,-460.0,0.00018082,2]
[369601971,1751639450847,-460.0,0.00018082,2]
[369601972,1751639450857,-151.0,0.00018082,2]
[369601973,1751639450866,-1038.33,0.00018082,2]
[369601974,1751639450875,-460.0,0.00018082,2]
[369601975,1751639450885,-460.0,0.00018082,2]
[369601976,1751639450894,-460.0,0.00018082,2]
[369601977,1751639450903,-460.0,0.00018082,2]
[369601978,1751639450913,-460.0,0.00018082,2]
[369601979,1751639450923,-592.38,0.00018082,2]
[369601980,1751639450932,-250.0,0.000181,2]
[369601981,1751639450943,-151.0,0.00018173,2]
[369601982,1751639450952,-250.0,0.00018181,2]
[369601983,1751639450961,-1500.0,0.00018196,2]
[369601984,1751639450971,-151.0,0.000182,2]
[369601985,1751639450980,-237.0,0.0001821,2]
[369601986,1751639450989,-504.56956649,0.00018211,2]
[369601987,1751639450998,-302.37457667,0.00018211,2]
[369601988,1751639451008,-311.0,0.00018231,2]
[369601989,1751639451017,-250.0,0.00018262,2]
[369601990,1751639451026,-151.0,0.00018273,2]
[369601991,1751639451036,-151.0,0.00018273,2]
[369601992,1751639451045,-151.0,0.00018273,2]
[369601993,1751639451054,-460.0,0.00018273,2]
[369601994,1751639451063,-198.88409279,0.00018273,2]
[369601995,1751639451074,-460.0,0.00018273,2]
[369601996,1751639451084,-460.0,0.00018273,2]
[369601997,1751639451094,-901.08,0.00018273,2]
[369601998,1751639451103,-2685.12,0.00018273,2]
[369601999,1751639451113,-460.0,0.00018273,2]
[369602000,1751639451122,-596.03,0.00018273,2]
[369602001,1751639451132,-697.48,0.00018273,2]
[369602002,1751639451141,-786.49,0.00018273,2]
[369602003,1751639451150,-494.25,0.00018273,2]
[369602004,1751639451159,-151.0,0.00018279,2]
[369602005,1751639451168,-151.0,0.00018279,2]
[369602006,1751639451177,-151.0,0.00018279,2]
[369602007,1751639451186,-151.0,0.00018279,2]
[369602008,1751639451196,-199.689485,0.00018279,2]
[369602009,1751639451206,-199.689485,0.00018279,2]
[369602010,1751639451215,-7830.77030469,0.00018279,2]
[369602011,1751639451226,-151.0,0.00018285,2]
[369602012,1751639451235,-151.0,0.00018285,2]
[369602013,1751639451245,-151.0,0.00018285,2]
[369602014,1751639451256,-250.0,0.00018343,2]
[369602015,1751639451268,-151.0,0.00018356,2]
[369602016,1751639451279,-151.0,0.00018356,2]
[369602017,1751639451289,-151.0,0.00018356,2]
[369602018,1751639451298,-151.0,0.00018356,2]
[369602019,1751639451307,-160.941002,0.00018356,2]
[369602020,1751639451318,-160.941002,0.00018356,2]
[369602021,1751639451328,-460.0,0.00018356,2]
[369602022,1751639451338,-460.0,0.00018356,2]
[369602023,1751639451350,-460.0,0.00018356,2]
[369602024,1751639451359,-460.0,0.00018356,2]
[369602025,1751639451368,-151.0,0.00018356,2]
[369602026,1751639451377,-460.0,0.00018356,2]
[369602027,1751639451386,-845.88,0.00018356,2]
[369602028,1751639451395,-460.0,0.00018356,2]
[369602029,1751639451404,-460.0,0.00018356,2]
[369602030,1751639451413,-151.0,0.00018356,2]
[369602031,1751639451423,-601.92,0.00018356,2]
[369602032,1751639451432,-151.0,0.00018356,2]
[369602033,1751639451441,-151.0,0.00018356,2]
[369602034,1751639451451,-460.0,0.00018356,2]
[369602035,1751639451460,-630.66,0.00018356,2]
[369602036,1751639451471,-1045.33,0.00018356,2]
[369602037,1751639451483,-485.35408985,0.00018356,2]
[369602038,1751639451492,-1477.98,0.00018356,2]
[369602039,1751639451502,-1294.52,0.00018356,2]
[369602040,1751639451512,-940.7,0.00018356,2]
[369602041,1751639451521,-460.0,0.00018356,2]
[369602042,1751639451530,-460.0,0.00018356,2]
[369602043,1751639451540,-460.0,0.00018356,2]
[369602044,1751639451551,-460.0,0.00018356,2]
[369602045,1751639451560,-1381.49,0.00018356,2]
[369602046,1751639451569,-460.0,0.00018356,2]
[369602047,1751639451578,-1536.37,0.00018356,2]
[369602048,1751639451588,-460.0,0.00018356,2]
[369602049,1751639451597,-460.0,0.00018356,2]
[369602050,1751639451606,-460.0,0.00018356,2]
[369602051,1751639451616,-887.1,0.00018356,2]
[369602052,1751639451625,-460.0,0.00018356,2]
[369602053,1751639451635,-1906.15,0.00018356,2]
[369602054,1751639451644,-2258.56,0.00018356,2]
[369602055,1751639451654,-460.0,0.00018356,2]
[369602056,1751639451663,-1497.27,0.00018356,2]
[369602057,1751639451672,-151.0,0.00018356,2]
[369602058,1751639451682,-460.0,0.00018356,2]
[369602059,1751639451691,-691.33,0.00018356,2]
[369602060,1751639451700,-2310.45,0.00018356,2]
[369602061,1751639451710,-916.41,0.00018356,2]
[369602062,1751639451720,-460.0,0.00018356,2]
[369602063,1751639451729,-460.0,0.00018356,2]
[369602064,1751639451739,-460.0,0.00018356,2]
[369602065,1751639451749,-1038.33,0.00018356,2]
[369602066,1751639451758,-460.0,0.00018356,2]
[369602067,1751639451767,-344.88243,0.00018356,2]
[369602068,1751639451777,-460.0,0.00018356,2]
[369602069,1751639451786,-460.0,0.00018356,2]
[369602070,1751639451796,-344.88243,0.00018356,2]
[369602071,1751639451805,-460.0,0.00018356,2]
[369602072,1751639451815,-460.0,0.00018356,2]
[369602073,1751639451824,-592.38,0.00018356,2]
[369602074,1751639451834,-266.630416,0.00018364,2]
[369602075,1751639451843,-266.630416,0.00018364,2]
[369602076,1751639451853,-160.0,0.00018365,3]
[369602077,1751639451862,-151.0,0.0001837,2]
[369602078,1751639451872,-213.97741257,0.0001837,3]
[369602079,1751639451881,-12578.03337979,0.0001837,3]
[369602080,1751639451891,-847.91215827,0.0001837,3]
[369602081,1751639451900,-169.6,0.00018409,3]
[369602082,1751639451910,-250.0,0.00018424,2]
[369602083,1751639451919,-151.0,0.00018469,2]
[369602084,1751639451930,-587.0,0.00018472,2]
[369602085,1751639451940,-151.0,0.00018489,2]
[369602086,1751639451949,-1000.0,0.000185,4]
[369602087,1751639451959,-151.0,0.000185,2]
[369602088,1751639451968,-250.0,0.00018505,2]
[369602089,1751639451978,-460.0,0.00018547,2]
[369602090,1751639451988,-460.0,0.00018547,2]
[369602091,1751639451998,-460.0,0.00018547,2]
[369602092,1751639452008,-901.08,0.00018547,2]
[369602093,1751639452018,-2685.12,0.00018547,2]
[369602094,1751639452027,-460.0,0.00018547,2]
[369602095,1751639452037,-596.03,0.00018547,2]
[369602096,1751639452047,-697.48,0.00018547,2]
[369602097,1751639452056,-786.49,0.00018547,2]
[369602098,1751639452065,-494.25,0.00018547,2]
[369602099,1751639452077,-351.71958281,0.00018549,2]
[369602100,1751639452087,-7830.77030469,0.00018555,2]
[369602101,1751639452096,-250.0,0.00018586,2]
[369602102,1751639452106,-311.0,0.00018594,2]
[369602103,1751639452115,-237.0,0.00018597,2]
[369602104,1751639452125,-629.69885957,0.000186,2]
[369602105,1751639452251,-1370.30114043,0.000186,2]
[369602106,1751639452261,-2000.0,0.000186,2]
[369602107,1751639452270,-213.326127,0.0001863,2]
[369602108,1751639452279,-151.0,0.0001863,2]
[369602109,1751639452289,-151.0,0.0001863,2]
[369602110,1751639452298,-151.827382,0.0001863,2]
[369602111,1751639452307,-151.0,0.0001863,2]
[369602112,1751639452317,-151.0,0.0001863,2]
[369602113,1751639452326,-151.0,0.0001863,2]
[369602114,1751639452336,-151.0,0.0001863,2]
[369602115,1751639452345,-151.0,0.0001863,2]
[369602116,1751639452355,-257.62727128,0.0001863,2]
[369602117,1751639452364,-151.0,0.0001863,2]
[369602118,1751639452374,-151.0,0.0001863,2]
[369602119,1751639452383,-151.0,0.0001863,2]
[369602120,1751639452392,-151.0,0.0001863,2]
[369602121,1751639452402,-151.0,0.0001863,2]
[369602122,1751639452413,-460.0,0.0001863,2]
[369602123,1751639452422,-460.0,0.0001863,2]
[369602124,1751639452431,-460.0,0.0001863,2]
[369602125,1751639452441,-180.946424,0.0001863,2]
[369602126,1751639452451,-460.0,0.0001863,2]
[369602127,1751639452460,-845.88,0.0001863,2]
[369602128,1751639452471,-460.0,0.0001863,2]
[369602129,1751639452485,-460.0,0.0001863,2]
[369602130,1751639452495,-151.0,0.0001863,2]
[369602131,1751639452504,-601.92,0.0001863,2]
[369602132,1751639452515,-151.0,0.0001863,2]
[369602133,1751639452525,-289.878844,0.0001863,2]
[369602134,1751639452534,-460.0,0.0001863,2]
[369602135,1751639452544,-151.0,0.0001863,2]
[369602136,1751639452555,-630.66,0.0001863,2]
[369602137,1751639452565,-1045.33,0.0001863,2]
[369602138,1751639452575,-1477.98,0.0001863,2]
[369602139,1751639452585,-1294.52,0.0001863,2]
[369602140,1751639452595,-940.7,0.0001863,2]
[369602141,1751639452604,-151.0,0.0001863,2]
[369602142,1751639452614,-460.0,0.0001863,2]
[369602143,1751639452624,-460.0,0.0001863,2]
[369602144,1751639452634,-151.0,0.0001863,2]
[369602145,1751639452646,-460.0,0.0001863,2]
[369602146,1751639452657,-460.0,0.0001863,2]
[369602147,1751639452667,-1381.49,0.0001863,2]
[369602148,1751639452677,-460.0,0.0001863,2]
[369602149,1751639452687,-151.0,0.0001863,2]
[369602150,1751639452696,-1536.37,0.0001863,2]
[369602151,1751639452705,-460.0,0.0001863,2]
[369602152,1751639452715,-460.0,0.0001863,2]
[369602153,1751639452724,-460.0,0.0001863,2]
[369602154,1751639452735,-887.1,0.0001863,2]
[369602155,1751639452744,-460.0,0.0001863,2]
[369602156,1751639452754,-1906.15,0.0001863,2]
[369602157,1751639452764,-2258.56,0.0001863,2]
[369602158,1751639452773,-460.0,0.0001863,2]
[369602159,1751639452783,-1497.27,0.0001863,2]
[369602160,1751639452793,-151.0,0.0001863,2]
[369602161,1751639452803,-460.0,0.0001863,2]
[369602162,1751639452813,-408.16281129,0.0001863,2]
[369602163,1751639452825,-283.16718871,0.0001863,2]
[369602164,1751639452835,-2310.45,0.0001863,2]
[369602165,1751639452844,-916.41,0.0001863,2]
[369602166,1751639452854,-365.13281129,0.0001863,2]
[369602167,1751639566455,170.221136,0.00014971,2]
[369602169,1751639621550,150.0,0.00027397,120]
[369602170,1751639719805,150.0,0.00024472,60]
[369602174,1751639854987,186.159461,0.00014813,2]
[369602177,1751640011141,681.33661,0.00013699,2]
[369602180,1751640272595,50000.0,0.00024497,60]
[369602187,1751640319435,24900.0,0.00014557,2]
[369602255,1751640524280,786.27667684,0.00025239,120]
[369602275,1751640632150,-3433.69217812,0.00015171,2]
[369602276,1751640632200,-753.36424194,0.00015171,2]
[369602329,1751640638392,-3453.88413304,0.00015171,2]
[369602330,1751640638403,-197.0,0.000152,2]
[369602331,1751640638413,-1200.0,0.00015272,2]
[369602332,1751640638423,-381.96330828,0.00015273,2]
[369602333,1751640638432,-300.0,0.00015425,2]
[369602334,1751640638442,-500.0,0.00015425,2]
[369602335,1751640638451,-500.0,0.00015425,2]
[369602336,1751640638461,-500.0,0.00015425,2]
[369602337,1751640638470,-500.0,0.00015425,2]
[369602338,1751640638480,-500.0,0.00015425,2]
[369602339,1751640638489,-500.0,0.00015425,2]
[369602340,1751640638499,-196.70928578,0.00015425,2]
[369602341,1751640638509,-500.0,0.00015425,2]
[369602342,1751640638518,-500.0,0.00015425,2]
[369602343,1751640638528,-500.0,0.00015425,2]
[369602344,1751640638537,-500.0,0.00015425,2]
[369602346,1751640638547,-446.51767796,0.00015425,2]
[369602347,1751640638556,-500.0,0.00015425,2]
[369602348,1751640638566,-500.0,0.00015425,2]
[369602349,1751640638576,-500.0,0.00015425,2]
[369602371,1751640638766,-500.0,0.00015425,2]
[369602373,1751640638776,-500.0,0.00015425,2]
[369602375,1751640638786,-500.0,0.00015425,2]
[369602377,1751640638795,-500.0,0.00015425,2]
[369602379,1751640638806,-500.0,0.00015425,2]
[369602381,1751640638815,-500.0,0.00015425,2]
[369602383,1751640638828,-500.0,0.00015425,2]
[369602385,1751640638838,-500.0,0.00015425,2]
[369602387,1751640638847,-500.0,0.00015425,2]
[369602389,1751640638857,-500.0,0.00015425,2]
[369602391,1751640638866,-500.0,0.00015425,2]
[369602393,1751640638876,-500.0,0.00015425,2]
[369602395,1751640638885,-186.25007406,0.00015425,2]
[369602397,1751640638896,-500.0,0.00015425,2]
[369602399,1751640638906,-164.33875876,0.00015425,2]
[369602401,1751640638916,-500.0,0.00015425,2]
[369602403,1751640638926,-500.0,0.00015425,2]
[369602405,1751640638935,-500.0,0.00015425,2]
[369602407,1751640638945,-500.0,0.00015425,2]
[369602409,1751640638955,-500.0,0.00015425,2]
[369602411,1751640638965,-500.0,0.00015425,2]
[369602413,1751640638974,-500.0,0.00015425,2]
[369602415,1751640638983,-500.0,0.00015425,2]
[369602417,1751640638992,-500.0,0.00015425,2]
[369602419,1751640639002,-500.0,0.00015425,2]
[369602421,1751640639012,-500.0,0.00015425,2]
[369602423,1751640639021,-500.0,0.00015425,2]
[369602425,1751640639031,-500.0,0.00015425,2]
[369602427,1751640639041,-500.0,0.00015425,2]
[369602429,1751640639051,-500.0,0.00015425,2]
[369602431,1751640639061,-500.0,0.00015425,2]
[369602433,1751640639071,-500.0,0.00015425,2]
[369602435,1751640639081,-500.0,0.00015425,2]
[369602437,1751640639090,-373.122683,0.00015425,2]
[369602438,1751640639102,-500.0,0.00015425,2]
[369602440,1751640639112,-500.0,0.00015425,2]
[369602442,1751640639122,-500.0,0.00015425,2]
[369602445,1751640639132,-500.0,0.00015425,2]
[369602446,1751640639141,-500.0,0.00015425,2]
[369602448,1751640639152,-500.0,0.00015425,2]
[369602450,1751640639162,-500.0,0.00015425,2]
[369602452,1751640639171,-500.0,0.00015425,2]
[369602454,1751640639186,-500.0,0.00015426,2]
[369602457,1751640639196,-1359.38716947,0.00015426,2]
[369602458,1751640639205,-177.38839315,0.00015945,2]
[369602460,1751640639215,-1042.08295042,0.00016338,2]
[369602462,1751640639224,-460.0,0.00016438,2]
[369602464,1751640639233,-460.0,0.00016438,2]
[369602466,1751640639242,-267.9336596,0.00016438,2]
[369602468,1751640639252,-460.0,0.00016438,2]
[369602470,1751640639262,-405.22657715,0.00016438,2]
[369602472,1751640639271,-460.0,0.00016438,2]
[369602474,1751640639282,-475.39008063,0.00016438,2]
[369602476,1751640639292,-3255.2,0.00016438,2]
[369602478,1751640639303,-3255.2,0.00016438,2]
[369602480,1751640639313,-3255.2,0.00016438,2]
[369602482,1751640639323,-3255.2,0.00016438,2]
[369602484,1751640639332,-3255.2,0.00016438,2]
[369602486,1751640639341,-500.0,0.00016438,2]
[369602488,1751640639352,-460.0,0.00016438,2]
[369602490,1751640639362,-460.0,0.00016438,2]
[369602492,1751640639371,-460.0,0.00016438,2]
[369602494,1751640639381,-460.0,0.00016438,2]
[369602496,1751640639390,-219.41683556,0.00016438,2]
[369602498,1751640639399,-460.0,0.00016438,2]
[369602500,1751640639410,-460.0,0.00016438,2]
[369602502,1751640639420,-460.0,0.00016438,2]
[369602504,1751640639429,-460.0,0.00016438,2]
[369602506,1751640639439,-460.0,0.00016438,2]
[369602508,1751640639449,-460.0,0.00016438,2]
[369602510,1751640639458,-460.0,0.00016438,2]
[369602512,1751640639468,-251.86662136,0.00016438,2]
[369602514,1751640639478,-585.62170476,0.00016438,2]
[369602516,1751640639488,-460.0,0.00016438,2]
[369602518,1751640639497,-460.0,0.00016438,2]
[369602520,1751640639507,-460.0,0.00016438,2]
[369602522,1751640639516,-460.0,0.00016438,2]
[369602524,1751640639526,-460.0,0.00016438,2]
[369602526,1751640639535,-460.0,0.00016438,2]
[369602528,1751640639546,-460.0,0.00016438,2]
[369602530,1751640639557,-461.23,0.00016438,2]
[369602532,1751640639566,-460.0,0.00016438,2]
[369602534,1751640639576,-460.0,0.00016438,2]
[369602536,1751640639585,-460.0,0.00016438,2]
[369602538,1751640639595,-460.0,0.00016438,2]
[369602540,1751640639605,-460.0,0.00016438,2]
[369602542,1751640639614,-500.0,0.00016438,2]
[369602544,1751640639624,-460.0,0.00016438,2]
[369602546,1751640639633,-460.0,0.00016438,2]
[369602548,1751640639644,-460.0,0.00016438,2]
[369602550,1751640639653,-460.0,0.00016438,2]
[369602552,1751640639664,-460.0,0.00016438,2]
[369602554,1751640639673,-847.73,0.00016438,2]
[369602556,1751640639683,-460.0,0.00016438,2]
[369602558,1751640639692,-460.0,0.00016438,2]
[369602560,1751640639701,-460.0,0.00016438,2]
[369602562,1751640639711,-461.20224027,0.00016438,2]
[369602564,1751640639721,-460.0,0.00016438,2]
[369602566,1751640639730,-460.0,0.00016438,2]
[369602568,1751640639740,-460.0,0.00016438,2]
[369602570,1751640639749,-517.88,0.00016438,2]
[369602572,1751640639759,-460.0,0.00016438,2]
[369602574,1751640639769,-460.0,0.00016438,2]
[369602576,1751640639778,-460.0,0.00016438,2]
[369602578,1751640639788,-460.0,0.00016438,2]
[369602580,1751640639799,-460.0,0.00016438,2]
[369602582,1751640639808,-460.0,0.00016438,2]
[369602584,1751640639817,-460.0,0.00016438,2]
[369602586,1751640639827,-460.0,0.00016438,2]
[369602588,1751640639836,-460.0,0.00016438,2]
[369602590,1751640639846,-460.55313794,0.00016438,2]
[369602592,1751640639855,-322.50935835,0.00016438,2]
[369602594,1751640639865,-602.93456521,0.00016438,2]
[369602596,1751640639874,-460.0,0.00016438,2]
[369602598,1751640639883,-460.0,0.00016438,2]
[369602600,1751640639894,-460.0,0.00016438,2]
[369602602,1751640639904,-460.0,0.00016438,2]
[369602604,1751640639914,-460.0,0.00016438,2]
[369602606,1751640639924,-826.84,0.00016438,2]
[369602608,1751640639934,-460.0,0.00016438,2]
[369602610,1751640639945,-460.0,0.00016438,2]
[369602612,1751640639955,-1197.41,0.00016438,2]
[369602614,1751640639967,-460.0,0.00016438,2]
[369602616,1751640639978,-460.0,0.00016438,2]
[369602618,1751640639988,-460.0,0.00016438,2]
[369602620,1751640639999,-1910.38,0.00016438,2]
[369602622,1751640640010,-460.0,0.00016438,2]
[369602624,1751640640020,-460.0,0.00016438,2]
[369602626,1751640640031,-2069.31,0.00016438,2]
[369602629,1751640640042,-460.0,0.00016438,2]
[369602631,1751640640055,-504.29,0.00016438,2]
[369602634,1751640640067,-460.0,0.00016438,2]
[369602636,1751640640077,-460.0,0.00016438,2]
[369602638,1751640640087,-460.0,0.00016438,2]
[369602640,1751640640097,-460.0,0.00016438,2]
[369602642,1751640640109,-2336.09,0.00016438,2]
[369602644,1751640640119,-460.0,0.00016438,2]
[369602646,1751640640129,-460.0,0.00016438,2]
[369602648,1751640640139,-528.35,0.00016438,2]
[369602650,1751640640149,-460.0,0.00016438,2]
[369602652,1751640640159,-460.0,0.00016438,2]
[369602654,1751640640169,-460.0,0.00016438,2]
[369602656,1751640640178,-460.0,0.00016438,2]
[369602658,1751640640189,-180.44949262,0.00016438,2]
[369602660,1751640640199,-460.0,0.00016438,2]
[369602662,1751640640208,-460.0,0.00016438,2]
[369602664,1751640640218,-460.0,0.00016438,2]
[369602666,1751640640228,-460.0,0.00016438,2]
[369602668,1751640640238,-460.0,0.00016438,2]
[369602670,1751640640248,-460.0,0.00016438,2]
[369602672,1751640640258,-3186.0,0.00016438,2]
[369602674,1751640640267,-1109.69,0.00016438,2]
[369602676,1751640640277,-460.0,0.00016438,2]
[369602678,1751640640286,-486.66,0.00016438,2]
[369602680,1751640640296,-460.0,0.00016438,2]
[369602682,1751640640307,-460.0,0.00016438,2]
[369602684,1751640640316,-460.0,0.00016438,2]
[369602686,1751640640326,-460.0,0.00016438,2]
[369602688,1751640640335,-460.0,0.00016438,2]
[369602690,1751640640345,-460.0,0.00016438,2]
[369602692,1751640640354,-460.0,0.00016438,2]
[369602694,1751640640363,-460.0,0.00016438,2]
[369602696,1751640640373,-460.0,0.00016438,2]
[369602698,1751640640382,-851.9,0.00016438,2]
[369602700,1751640640392,-1732.35,0.00016438,2]
[369602702,1751640640401,-460.0,0.00016438,2]
[369602704,1751640640411,-460.0,0.00016438,2]
[369602706,1751640640420,-472.61,0.00016438,2]